bitfinex/quotes_SOLUSD_20240914
["timestamp","ask_amount","ask_price","bid_price","bid_amount"]
[1726274564391,0.12549,138.9,138.84,14.4270259]
[1726274564601,1.25345409,138.91,138.85,14.4270259]
[1726274564805,23.5348,138.95,138.86,30.1575259]
[1726274564970,27.74712623,138.95,138.86,15.7305]
[1726274565483,49.40712623,138.95,138.86,15.7305]
[1726274565874,0.25098,138.94,138.86,15.7305]
[1726274566081,24.027864,138.94,138.86,15.7305]
[1726274566667,0.12549,138.92,138.86,15.7305]
[1726274566967,0.25098,138.92,138.86,15.7305]
[1726274567167,0.25098,138.91,138.86,15.7305]
[1726274567367,0.12549,138.91,138.86,15.7305]
[1726274567794,0.12549,138.92,138.86,15.7305]
[1726274572888,49.40712623,138.95,138.87,29.914684]
[1726274572889,4.21232623,138.95,138.87,29.914684]
[1726274573195,0.2607011,138.96,138.87,6.1378]
[1726274573379,21.66,138.95,138.87,6.1378]
[1726274574178,0.25098,138.93,138.87,6.1378]
[1726274574488,0.12549,138.92,138.87,6.1378]
[1726274593020,0.25098,138.93,138.87,6.1378]
[1726274596513,0.12549,138.92,138.87,6.1378]
[1726274630143,0.25098,138.93,138.87,6.1378]
[1726274632750,0.12549,138.93,138.87,6.1378]
[1726274633855,0.12549,138.94,138.87,6.1378]
[1726274634355,0.12549,138.94,138.88,15.7106]
[1726274635425,0.25098,138.95,138.88,15.7106]
[1726274643861,0.3861911,138.96,138.9,6.2717]
[1726274647380,0.2607011,138.96,138.91,16.72421431]
[1726274648245,0.2607011,138.96,138.91,15.2856]
[1726274649849,0.2607011,138.96,138.92,23.776884]
[1726274650175,0.2607011,138.96,138.93,7.58449965]
[1726274650359,0.2607011,138.96,138.94,1.43737567]
[1726274650755,0.2607011,138.96,138.93,6.147]
[1726274664376,0.2607011,138.96,138.92,23.776884]
[1726274667297,0.2607011,138.96,138.91,15.2856]
[1726274678205,0.2607011,138.96,138.92,23.776884]
[1726274688403,0.2607011,138.96,138.88,20.0]
[1726274689416,0.2607011,138.96,138.89,23.902374]
[1726274691014,0.2607011,138.96,138.88,20.0]
[1726274691316,0.2607011,138.96,138.89,10.55843127]
[1726274691508,0.2607011,138.96,138.9,1.43928591]
[1726274692108,0.2607011,138.96,138.91,23.776884]
[1726274692298,0.2607011,138.96,138.9,23.776884]
[1726274697016,0.2607011,138.96,138.89,24.027864]
[1726274697197,0.2607011,138.96,138.9,24.153354]
[1726274697800,0.2607011,138.96,138.9,0.37647]
[1726274698307,0.2607011,138.96,138.89,23.776884]
[1726274700510,15.295,138.95,138.89,23.776884]
[1726274700833,15.295,138.95,138.86,9.11905336]
[1726274701913,15.295,138.95,138.87,20.0]
[1726274702306,15.295,138.95,138.88,23.776884]
[1726274710294,15.295,138.95,138.88,0.25098]
[1726274711023,15.295,138.95,138.87,23.902374]
[1726274712496,15.295,138.95,138.88,0.12549]
[1726274721227,15.295,138.95,138.88,0.25098]
[1726274723729,15.295,138.95,138.87,23.902374]
[1726274725113,22.609,138.94,138.87,23.902374]
[1726274732331,22.609,138.94,138.89,23.776884]
[1726274732821,22.609,138.94,138.9,1.4384639]
[1726274733210,22.609,138.94,138.91,23.776884]
[1726274733527,22.609,138.94,138.88,23.902374]
[1726274736536,22.609,138.94,138.88,23.776884]
[1726274738818,16.5481,138.93,138.86,0.12549]
[1726274739011,16.5481,138.93,138.86,20.25098]
[1726274739412,16.5481,138.93,138.85,20.25098]
[1726274740235,16.5481,138.93,138.86,23.776884]
[1726274743542,15.1296,138.89,138.84,9.11905336]
[1726274747537,15.1296,138.89,138.82,0.2607011]
[1726274748126,16.3422,138.87,138.82,0.2607011]
[1726274759555,16.3422,138.87,138.83,23.776884]
[1726274759745,16.3422,138.87,138.84,1.44018619]
[1726274759946,16.3422,138.87,138.83,23.776884]
[1726274760154,16.3422,138.87,138.84,1.44018656]
[1726274760349,16.3422,138.87,138.83,23.776884]
[1726274760530,16.3422,138.87,138.84,1.43997909]
[1726274760728,16.3422,138.87,138.83,23.776884]
[1726274761041,16.3422,138.87,138.84,1.43997908]
[1726274783958,16.3422,138.87,138.83,23.776884]
[1726274786164,16.3422,138.87,138.84,1.43945105]
[1726274786869,16.3422,138.87,138.83,23.776884]
[1726274792779,15.8422,138.87,138.83,23.776884]
[1726274793585,14.8422,138.87,138.83,23.776884]
[1726274794475,14.3422,138.87,138.83,23.776884]
[1726274802186,14.3422,138.87,138.84,1.44023348]
[1726274806394,14.3422,138.87,138.83,23.776884]
[1726274807993,14.3422,138.87,138.84,1.44012778]
[1726274808292,14.3422,138.87,138.83,23.776884]
[1726274808486,14.3422,138.87,138.84,1.4402112]
[1726274810287,14.3422,138.87,138.83,23.776884]
[1726274815379,14.3422,138.87,138.84,1.4402799]
[1726274825882,14.3422,138.87,138.83,23.776884]
[1726274826191,14.3422,138.87,138.84,1.44008183]
[1726274826803,14.3422,138.87,138.82,0.2607011]
[1726274827494,14.3422,138.87,138.82,1.70038023]
[1726274838132,14.3422,138.87,138.82,0.2607011]
[1726274848730,13.8422,138.87,138.82,0.2607011]
[1726274869125,6.6312,138.86,138.82,0.2607011]
[1726274869324,15.0012,138.85,138.82,0.2607011]
[1726274873751,13.5012,138.85,138.82,0.2607011]
[1726274875056,6.6312,138.91,138.82,0.2607011]
[1726274876247,6.6312,138.89,138.82,0.2607011]
[1726274876644,15.0012,138.88,138.82,0.2607011]
[1726274880567,15.0012,138.88,138.83,23.776884]
[1726274880738,15.0012,138.88,138.84,1.43134905]
[1726274880939,15.0012,138.88,138.83,23.776884]
[1726274881139,15.0012,138.88,138.85,23.776884]
[1726274881438,15.0012,138.88,138.86,1.43093673]
[1726274881746,15.0012,138.88,138.83,23.776884]
[1726274881951,15.0012,138.88,138.85,23.776884]
[1726274882143,15.0012,138.88,138.86,1.4305828]
[1726274882338,15.0012,138.88,138.85,23.776884]
[1726274882541,15.0012,138.88,138.86,1.4361784]
[1726274882740,15.0012,138.88,138.85,23.776884]
[1726274883067,15.0012,138.88,138.86,1.43597154]
[1726274883755,15.0012,138.88,138.85,23.776884]
[1726274885453,15.0012,138.88,138.86,1.4374826]
[1726274886468,22.1414,138.93,138.86,1.4374826]
[1726274886960,22.1414,138.93,138.87,23.776884]
[1726274887169,22.1414,138.93,138.85,23.776884]
[1726274887354,22.1414,138.93,138.84,24.027864]
[1726274888146,22.1414,138.93,138.84,0.25098]
[1726274890948,22.1414,138.93,138.84,0.12549]
[1726274891146,15.7631,138.92,138.84,0.12549]
[1726274891668,15.7631,138.92,138.83,23.776884]
[1726274891866,6.3783,138.91,138.82,20.3861911]
[1726274892175,15.7631,138.9,138.82,20.2607011]
[1726274892351,15.7631,138.9,138.82,0.2607011]
[1726274892847,15.7631,138.88,138.82,0.2607011]
[1726274899181,15.2631,138.88,138.82,0.2607011]
[1726274907468,15.2631,138.88,138.82,1.282264]
[1726274907669,15.2631,138.88,138.83,23.776884]
[1726274907876,15.2631,138.88,138.84,1.02266039]
[1726274910293,15.2631,138.88,138.84,1.44015248]
[1726274913393,15.2631,138.88,138.82,0.2607011]
[1726274923899,15.272,138.86,138.82,0.2607011]
[1726274941595,14.772,138.86,138.83,23.776884]
[1726274941811,14.772,138.86,138.84,1.34796277]
[1726274942218,14.772,138.86,138.85,23.776884]
[1726274942422,6.369,138.87,138.83,23.776884]
[1726274942716,6.369,138.87,138.84,0.45683113]
[1726274944116,6.2461,138.93,138.84,0.45683113]
[1726274944297,6.2461,138.93,138.83,23.776884]
[1726274944298,0.12549,138.92,138.82,24.0375851]
[1726274944501,15.4898,138.91,138.83,0.12549]
[1726274944690,6.2461,138.9,138.83,0.12549]
[1726274944890,6.2461,138.9,138.82,24.0375851]
[1726274945416,6.2461,138.9,138.83,23.776884]
[1726274955628,15.4898,138.89,138.83,23.776884]
[1726274956927,15.4898,138.89,138.82,0.2607011]
[1726274957126,15.4898,138.87,138.82,0.2607011]
[1726274981322,15.0001,138.83,138.77,0.2607011]
[1726275006362,15.0001,138.83,138.78,14.8034959]
[1726275006564,15.0001,138.83,138.79,14.4270259]
[1726275006759,15.0001,138.83,138.8,0.49264374]
[1726275007868,21.7498,138.9,138.81,0.37647]
[1726275008060,21.7498,138.9,138.82,0.49257297]
[1726275009175,21.7498,138.9,138.83,0.5051852]
[1726275009561,21.7498,138.9,138.81,0.7561652]
[1726275010671,21.7498,138.9,138.81,15.1831911]
[1726275018276,21.7498,138.9,138.82,0.25098]
[1726275018476,21.7498,138.9,138.83,0.50530113]
[1726275033262,16.1293,138.89,138.84,0.50526473]
[1726275038700,16.1293,138.89,138.84,14.93229063]
[1726275038876,16.1293,138.89,138.85,0.50522833]
[1726275041473,16.1293,138.89,138.86,0.54479074]
[1726275041887,16.1293,138.89,138.85,0.54582733]
[1726275042096,16.1293,138.89,138.86,0.55755563]
[1726275042297,16.1293,138.89,138.87,23.776884]
[1726275043981,16.1293,138.89,138.83,0.12549]
[1726275044186,16.1293,138.89,138.84,0.12549]
[1726275044596,16.1293,138.89,138.83,23.902374]
[1726275044777,16.1293,138.89,138.82,23.776884]
[1726275045471,16.1293,138.89,138.83,0.12549]
[1726275048293,16.1293,138.89,138.84,23.776884]
[1726275058214,16.1293,138.89,138.84,38.2039099]
[1726275060728,16.1293,138.89,138.86,23.776884]
[1726275062905,16.1293,138.89,138.87,1.43875376]
[1726275063222,16.1293,138.89,138.86,25.21574136]
[1726275066033,16.1293,138.89,138.86,39.64276726]
[1726275067631,0.2607011,138.92,138.87,0.25098]
[1726275067821,0.2607011,138.92,138.88,23.776884]
[1726275068022,0.2607011,138.92,138.89,1.43867482]
[1726275069138,0.2607011,138.92,138.9,23.776884]
[1726275069507,0.2607011,138.92,138.89,23.776884]
[1726275070105,0.2607011,138.92,138.88,23.776884]
[1726275071632,0.2607011,138.92,138.88,38.2039099]
[1726275071933,0.2607011,138.92,138.89,0.12549]
[1726275072507,22.7869,138.91,138.8,2.84807205]
[1726275072706,22.7869,138.91,138.82,14.4270259]
[1726275073933,22.7869,138.91,138.83,20.25098]
[1726275074114,22.7869,138.91,138.84,0.25098]
[1726275075815,22.7869,138.91,138.85,0.12549]
[1726275077642,22.7869,138.91,138.84,0.12549]
[1726275077835,22.7869,138.91,138.83,0.37647]
[1726275081345,22.7869,138.91,138.84,20.0]
[1726275089249,22.7869,138.91,138.85,0.25098]
[1726275091547,22.7869,138.91,138.84,0.25098]
[1726275091956,22.7869,138.91,138.84,20.25098]
[1726275092649,15.9021,138.9,138.84,0.25098]
[1726275092835,15.9021,138.9,138.84,20.25098]
[1726275095232,15.9021,138.9,138.84,0.25098]
[1726275095740,15.9021,138.9,138.83,14.5525159]
[1726275095741,15.9021,138.9,138.83,0.12549]
[1726275095926,6.2069,138.89,138.82,0.12549]
[1726275096130,15.9021,138.88,138.82,0.12549]
[1726275097244,15.9021,138.88,138.82,0.25098]
[1726275101850,15.9021,138.88,138.82,14.6780059]
[1726275102049,15.9021,138.88,138.84,0.25098]
[1726275103559,15.9021,138.88,138.84,14.6780059]
[1726275107368,15.9021,138.88,138.85,0.12549]
[1726275112472,15.9021,138.88,138.86,0.12549]
[1726275112669,15.9021,138.88,138.85,14.5525159]
[1726275115075,15.9021,138.88,138.86,0.25098]
[1726275120277,15.9021,138.88,138.85,14.5525159]
[1726275120859,15.9021,138.88,138.86,0.25098]
[1726275121480,15.9021,138.88,138.86,14.6780059]
[1726275125382,15.9021,138.88,138.86,0.25098]
[1726275129763,15.9021,138.88,138.85,0.25098]
[1726275150083,15.9021,138.88,138.81,20.0]
[1726275150401,15.9021,138.88,138.8,21.88945735]
[1726275150588,15.9021,138.88,138.8,14.4270259]
[1726275150790,6.6656,138.87,138.78,14.4270259]
[1726275151027,16.067,138.86,138.77,22.14050298]
[1726275151306,16.067,138.86,138.77,14.687727]
[1726275151686,16.067,138.86,138.78,14.4270259]
[1726275151997,16.067,138.86,138.79,14.4270259]
[1726275152204,16.067,138.86,138.8,0.12549]
[1726275152581,16.067,138.86,138.79,14.4270259]
[1726275155291,16.067,138.86,138.8,0.12549]
[1726275158681,6.6656,138.85,138.79,0.25098]
[1726275158888,6.6656,138.85,138.78,20.12549]
[1726275159083,16.067,138.84,138.78,0.37647]
[1726275159286,16.067,138.84,138.8,0.25098]
[1726275160707,16.067,138.84,138.79,0.25098]
[1726275163512,16.067,138.84,138.79,0.12549]
[1726275169315,16.067,138.84,138.79,20.25098]
[1726275170603,16.067,138.84,138.79,14.6780059]
[1726275172424,16.067,138.84,138.8,0.25098]
[1726275172721,16.067,138.84,138.81,0.25098]
[1726275178921,16.067,138.84,138.8,0.12549]
[1726275183025,16.067,138.84,138.8,0.37647]
[1726275186307,16.067,138.84,138.8,14.8034959]
[1726275187728,16.067,138.84,138.8,0.37647]
[1726275205139,16.067,138.84,138.77,0.2607011]
[1726275205449,16.067,138.84,138.77,20.2607011]
[1726275206551,16.067,138.84,138.78,0.37647]
[1726275206728,16.067,138.84,138.78,20.37647]
[1726275208437,16.067,138.84,138.78,34.8034959]
[1726275208759,16.067,138.84,138.78,14.8034959]
[1726275208938,16.067,138.84,138.79,20.0]
[1726275214653,16.067,138.84,138.79,14.4270259]
[1726275216046,16.067,138.84,138.8,1.69019145]
[1726275217848,16.067,138.84,138.8,0.25098]
[1726275221759,16.067,138.84,138.8,14.6780059]
[1726275221941,16.067,138.84,138.8,16.11792609]
[1726275222871,16.067,138.84,138.8,14.6780059]
[1726275226169,16.067,138.84,138.8,0.25098]
[1726275228772,16.067,138.84,138.79,0.12549]
[1726275229068,16.067,138.84,138.78,20.0]
[1726275230060,16.067,138.84,138.77,14.687727]
[1726275230061,16.067,138.84,138.77,0.2607011]
[1726275230768,16.067,138.84,138.78,0.25098]
[1726275233672,6.2947,138.83,138.77,0.2607011]
[1726275233876,15.5239,138.82,138.77,0.2607011]
[1726275245876,15.5239,138.82,138.77,14.687727]
[1726275247681,15.5239,138.82,138.78,1.56494319]
[1726275248071,15.5239,138.82,138.78,15.99196909]
[1726275250884,15.5239,138.82,138.78,14.5525159]
[1726275251788,15.5239,138.82,138.78,0.12549]
[1726275251991,15.5239,138.82,138.78,14.5525159]
[1726275254856,15.5239,138.82,138.78,0.12549]
[1726275260478,15.5239,138.82,138.77,14.687727]
[1726275260664,15.5239,138.82,138.77,0.2607011]
[1726275297910,15.5239,138.82,138.78,0.12549]
[1726275298114,15.5239,138.82,138.79,14.4270259]
[1726275298418,15.5239,138.82,138.8,1.43996363]
[1726275300802,6.2947,138.83,138.81,0.12549]
[1726275301819,6.2947,138.83,138.8,0.37647]
[1726275302495,16.0762,138.85,138.8,14.8034959]
[1726275306129,16.0762,138.85,138.8,0.37647]
[1726275308208,16.0762,138.85,138.8,0.25098]
[1726275308410,16.0762,138.85,138.79,0.25098]
[1726275308707,16.0762,138.85,138.78,14.5525159]
[1726275308906,16.0762,138.85,138.79,0.12549]
[1726275313024,16.0762,138.85,138.77,0.2607011]
[1726275313415,6.2308,138.84,138.77,0.2607011]
[1726275316929,6.2308,138.84,138.78,0.12549]
[1726275317227,6.2308,138.84,138.78,0.25098]
[1726275322820,6.2308,138.84,138.78,0.12549]
[1726275323020,6.2308,138.84,138.77,0.2607011]
[1726275335450,6.2308,138.84,138.77,20.2607011]
[1726275336432,6.2308,138.84,138.77,0.2607011]
[1726275342648,16.0762,138.85,138.77,14.687727]
[1726275342835,16.0762,138.85,138.78,14.8034959]
[1726275345942,16.0762,138.85,138.79,14.4270259]
[1726275346149,28.1642,138.88,138.79,14.4270259]
[1726275346150,44.3415,138.88,138.79,14.4270259]
[1726275350346,44.3415,138.88,138.78,20.37647]
[1726275350645,44.3415,138.88,138.78,34.8034959]
[1726275357278,44.3415,138.88,138.78,20.37647]
[1726275357579,0.37647,138.87,138.78,20.0]
[1726275361087,0.37647,138.87,138.77,16.8404011]
[1726275375620,37.8806,138.86,138.77,20.2607011]
[1726275376203,6.4544,138.85,138.77,20.2607011]
[1726275387020,6.4544,138.85,138.77,0.2607011]
[1726275387221,6.4544,138.85,138.77,20.2607011]
[1726275387528,15.8612,138.84,138.77,20.2607011]
[1726275387934,15.8612,138.84,138.77,0.2607011]
[1726275411262,22.01647,138.87,138.77,16.3044011]
[1726275414759,22.01647,138.87,138.77,30.731427]
[1726275417967,22.01647,138.87,138.78,6.178]
[1726275418267,21.76549,138.87,138.78,20.6050259]
[1726275418452,21.64,138.87,138.78,20.6050259]
[1726275418964,21.64,138.87,138.78,6.178]
[1726275432994,0.12549,138.86,138.78,6.178]
[1726275433182,0.25098,138.86,138.78,6.178]
[1726275433771,21.64,138.87,138.78,6.178]
[1726275439496,0.25098,138.88,138.79,16.5251]
[1726275439794,21.64,138.9,138.83,16.5251]
[1726275441699,0.25098,138.9,138.83,16.5251]
[1726275446301,0.12549,138.9,138.83,16.5251]
[1726275446488,0.2607011,138.92,138.83,16.5251]
[1726275447601,0.25098,138.91,138.83,16.5251]
[1726275454105,0.12549,138.9,138.83,16.5251]
[1726275482536,0.25098,138.91,138.83,16.5251]
[1726275491426,0.3861911,138.92,138.85,15.5759]
[1726275491427,0.2607011,138.92,138.85,15.5759]
[1726275508167,0.2607011,138.92,138.86,6.6477]
[1726275524164,0.25098,138.91,138.86,6.6477]
[1726275525756,0.25098,138.91,138.85,15.5759]
[1726275531461,0.12549,138.91,138.85,15.5759]
[1726275535665,0.2607011,138.92,138.85,15.5759]
[1726275538282,0.12549,138.91,138.85,15.5759]
[1726275540277,0.2607011,138.92,138.85,15.5759]
[1726275581295,0.37647,138.91,138.85,15.5759]
[1726275582618,22.01647,138.91,138.85,15.5759]
[1726275583011,29.21547,138.91,138.85,15.5759]
[1726275584616,21.64,138.9,138.85,15.5759]
[1726275584816,0.12549,138.89,138.85,15.5759]
[1726275585613,0.12549,138.9,138.85,15.5759]
[1726275600641,21.9007011,138.92,138.85,15.5759]
[1726275601650,0.2607011,138.92,138.85,15.5759]
[1726275601851,0.2607011,138.92,138.86,6.0782]
[1726275602030,0.2607011,138.92,138.87,17.07016038]
[1726275603123,0.2607011,138.92,138.87,15.631]
[1726275625748,21.9007011,138.92,138.86,6.0782]
[1726275628766,0.2607011,138.92,138.86,6.0782]
[1726275639968,0.2607011,138.92,138.87,16.2941]
[1726275649062,0.2607011,138.92,138.86,6.0782]
[1726275650157,0.2607011,138.92,138.84,15.3933]
[1726275650158,0.25098,138.91,138.84,15.3933]
[1726275656870,0.2607011,138.92,138.84,15.3933]
[1726275660067,21.76549,138.91,138.84,15.3933]
[1726275661086,21.76549,138.91,138.81,20.0]
[1726275661087,0.25098,138.9,138.81,20.0]
[1726275661592,0.25098,138.9,138.8,16.4701]
[1726275662092,16.0298011,138.92,138.82,14.4270259]
[1726275662257,21.64,138.91,138.82,14.4270259]
[1726275662460,21.64,138.91,138.81,14.6780059]
[1726275662687,21.64,138.91,138.82,0.12549]
[1726275662862,21.64,138.91,138.82,0.25098]
[1726275664694,0.25098,138.9,138.8,30.8971259]
[1726275664865,0.25098,138.9,138.8,16.4701]
[1726275666199,27.7889,138.89,138.8,16.4701]
[1726275672070,37.7503,138.88,138.8,16.4701]
[1726275674400,37.7503,138.88,138.79,6.83648]
[1726275674696,37.7503,138.88,138.78,20.0]
[1726275680905,0.37647,138.87,138.78,20.0]
[1726275681073,0.37647,138.87,138.77,0.2607011]
[1726275681280,0.37647,138.87,138.77,20.2607011]
[1726275681598,0.37647,138.87,138.77,34.687727]
[1726275685396,21.6878,138.86,138.77,0.2607011]
[1726275685582,43.3278,138.86,138.77,0.2607011]
[1726275691792,43.3278,138.86,138.77,24.0375851]
[1726275692008,43.3278,138.86,138.79,23.776884]
[1726275692212,21.6878,138.86,138.81,23.776884]
[1726275694486,15.3564,138.89,138.82,24.94950748]
[1726275694687,15.3564,138.89,138.82,24.027864]
[1726275696008,15.3564,138.89,138.83,0.12549]
[1726275700611,15.3564,138.89,138.82,24.027864]
[1726275700922,15.3564,138.89,138.83,0.12549]
[1726275712495,15.3564,138.89,138.84,0.25098]
[1726275727015,15.3564,138.89,138.82,23.776884]
[1726275727215,15.3564,138.89,138.8,14.4270259]
[1726275727419,15.3564,138.89,138.81,20.0]
[1726275727736,15.3564,138.89,138.81,34.4270259]
[1726275728344,15.3564,138.89,138.82,0.25098]
[1726275728547,15.3564,138.89,138.82,0.37647]
[1726275728754,15.3564,138.89,138.82,14.8034959]
[1726275739136,15.3564,138.89,138.82,0.37647]
[1726275739559,6.2968,138.88,138.82,0.37647]
[1726275739857,15.4945,138.87,138.82,0.37647]
[1726275745755,15.4945,138.87,138.84,0.12549]
[1726275745958,15.4945,138.87,138.84,0.37647]
[1726275746262,15.4945,138.87,138.84,24.153354]
[1726275762075,15.4945,138.87,138.86,23.776884]
[1726275762381,15.4945,138.87,138.86,24.027864]
[1726275762584,15.4945,138.87,138.86,24.153354]
[1726275766169,15.17,138.9,138.87,0.25098]
[1726275766369,15.17,138.9,138.88,23.902374]
[1726275769307,0.2607011,138.92,138.88,23.902374]
[1726275773428,0.2607011,138.92,138.89,0.88149027]
[1726275773630,0.2607011,138.92,138.89,0.25098]
[1726275776228,0.2607011,138.92,138.89,14.6780059]
[1726275776636,0.2607011,138.92,138.89,0.25098]
[1726275782423,0.2607011,138.92,138.89,20.25098]
[1726275782940,0.2607011,138.92,138.91,14.6780059]
[1726275783157,0.2607011,138.92,138.91,34.6780059]
[1726275783440,0.2607011,138.92,138.91,34.8034959]
[1726275786218,0.2607011,138.96,138.92,20.25098]
[1726275786513,0.2607011,138.96,138.95,34.6780059]
[1726275786732,0.2607011,139.01,138.96,20.25098]
[1726275786912,0.2607011,139.01,139.0,14.6780059]
[1726275787325,0.2607011,139.01,139.0,0.37647]
[1726275789037,0.2607011,139.01,138.99,20.0]
[1726275789431,0.2607011,139.01,139.0,0.37647]
[1726275792559,0.2607011,139.01,139.0,20.37647]
[1726275793150,0.2607011,139.01,139.0,34.8034959]
[1726275798758,0.2607011,139.01,139.0,34.8034959]
[1726275805245,0.2607011,139.01,139.0,20.0]
[1726275805450,0.2607011,139.01,138.99,20.0]
[1726275806163,0.2607011,139.01,138.94,16.2272]
[1726275806475,0.2607011,139.01,138.95,14.4270259]
[1726275806848,0.2607011,139.01,138.94,14.4270259]
[1726275807248,15.4306011,139.01,138.94,14.4270259]
[1726275808472,15.4306011,139.01,138.95,0.37647]
[1726275808847,15.4306011,139.01,138.95,20.37647]
[1726275810875,15.4306011,139.01,138.95,14.8034959]
[1726275814361,15.4306011,139.01,138.96,20.0]
[1726275814567,15.4306011,139.01,138.97,0.12549]
[1726275814779,15.4306011,139.01,138.96,20.0]
[1726275815575,15.4306011,139.01,138.93,14.4270259]
[1726275815772,15.4306011,139.01,138.94,20.0]
[1726275817362,15.4306011,139.01,138.96,20.0]
[1726275831577,15.4306011,139.01,138.92,7.52206762]
[1726275831777,6.234,139.0,138.93,20.0]
[1726275831981,6.234,139.0,138.91,14.4270259]
[1726275832181,6.234,139.0,138.92,14.4270259]
[1726275832480,6.234,139.0,138.9,7.5250506]
[1726275832481,15.9426,138.99,138.9,7.5250506]
[1726275832789,15.9426,138.99,138.9,21.9520765]
[1726275833373,15.9426,138.99,138.91,20.0]
[1726275835000,22.1766,138.98,138.91,20.0]
[1726275835202,15.9426,138.97,138.87,14.4270259]
[1726275835373,22.1766,138.96,138.88,7.52116704]
[1726275836494,22.1766,138.96,138.89,20.0]
[1726275839210,22.1766,138.96,138.9,14.4270259]
[1726275839371,22.1766,138.96,138.91,0.25098]
[1726275841079,22.1766,138.96,138.92,0.12549]
[1726275841482,22.1766,138.96,138.92,14.5525159]
[1726275841681,22.1766,138.96,138.93,20.25098]
[1726275845501,22.1766,138.96,138.92,0.12549]
[1726275845810,22.1766,138.96,138.92,0.25098]
[1726275846385,22.1766,138.96,138.91,20.0]
[1726275846692,22.1766,138.96,138.89,34.4270259]
[1726275848395,22.1766,138.96,138.9,0.37647]
[1726275850615,22.1766,138.96,138.91,14.4270259]
[1726275850820,22.1766,138.96,138.92,0.25098]
[1726275853788,22.1766,138.96,138.92,20.25098]
[1726275856496,22.1766,138.96,138.9,0.12549]
[1726275856699,22.1766,138.96,138.91,0.12549]
[1726275856913,22.1766,138.96,138.91,0.25098]
[1726275858529,22.1766,138.96,138.92,20.0]
[1726275863113,22.1766,138.96,138.91,0.25098]
[1726275864129,22.1766,138.96,138.91,14.6780059]
[1726275864336,22.1766,138.96,138.92,20.0]
[1726275865619,22.1766,138.96,138.93,0.12549]
[1726275866838,15.9426,138.96,138.93,14.8034959]
[1726275867007,15.9426,138.96,138.95,0.25098]
[1726275867211,15.9426,138.96,138.95,0.37647]
[1726275867412,15.9426,138.96,138.95,24.153354]
[1726275868930,15.9426,138.96,138.95,23.776884]
[1726275870042,15.9426,138.96,138.94,20.0]
[1726275870556,15.9426,138.96,138.93,43.902374]
[1726275879962,15.9426,138.96,138.93,58.3293999]
[1726275882231,15.9426,138.96,138.93,43.902374]
[1726275895738,15.9426,138.96,138.93,20.0]
[1726275895938,15.9426,138.96,138.9,14.4270259]
[1726275896169,15.9426,138.96,138.93,20.0]
[1726275897142,15.9426,138.96,138.94,23.776884]
[1726275901576,15.9426,138.96,138.94,38.2039099]
[1726275901784,6.3457,139.0,138.94,38.2039099]
[1726275901965,15.6254,138.99,138.94,38.2039099]
[1726275902467,15.6254,138.99,138.97,23.776884]
[1726275907291,0.2607011,139.01,138.97,25.21579487]
[1726275907471,0.2607011,139.01,138.99,23.776884]
[1726275907669,0.2607011,139.01,139.0,1.43860031]
[1726275908177,0.2607011,139.01,138.99,25.21554919]
[1726275908596,0.2607011,139.01,138.99,23.776884]
[1726275909166,0.2607011,139.01,138.99,25.215523]
[1726275910476,0.2607011,139.01,138.99,23.776884]
[1726275915392,0.2607011,139.01,138.99,38.2039099]
[1726275917103,0.2607011,139.01,138.99,23.776884]
[1726275922400,0.2607011,139.01,139.0,43.776884]
[1726275922586,0.2607011,139.01,139.0,43.902374]
[1726275922787,0.2607011,139.01,139.0,44.027864]
[1726275929900,0.2607011,139.01,139.0,44.153354]
[1726275940698,0.2607011,139.01,138.97,20.0]
[1726275941989,0.2607011,139.01,138.98,0.25098]
[1726275942218,0.2607011,139.01,139.0,43.776884]
[1726275942390,0.2607011,139.01,139.0,20.0]